Cogmind - Beta 11.1 @@@ ROGUE MODE // 2022.06.10 @ 07:00:02 Player: Exp. Geonium Core Result: Destroyed by Combat Programmer with EMDS Performance ------------- Evolutions (9) 4500 Regions Visited (19) 3800 Robots Destroyed (14) 70 Value Destroyed (283) 283 Prototype IDs (51) 1020 Alien Tech Used (0) 0 Bonus (6399) 6399 TOTAL SCORE: 16072 Bonus ------- Follower Combat Kills 241 Entered Garrisons 200 Used RIF Installer 500 Aligned with FarCom 300 Met Data Miner 300 Met MAIN.C 5000 Friendly Fire -142 Cogmind --------- Core Integrity 0/1600 Matter 169/300 Energy 100/100 System Corruption 26% Temperature Cool (1) Movement Flying (40) Location -1/Command Parts ------- > --- POWER (2) -------- (None) > --- PROPULSION (6) --- Field Propulsion Array > --- UTILITY (15) ----- Improved Melee Analysis Suite Advanced Melee Analysis Suite > --- WEAPON (2) ------- (None) > --- INVENTORY (5) ---- Improved Plasma Cutter Improved Plasma Cutter Peak State ------------ > --- POWER ------------ Quantum Reactor Light Quantum Reactor > --- PROPULSION ------- Xenon Bombardment Thruster Cooled Cesium-ion Thruster Impulse Thruster Q-thruster Q-thruster Experimental Q-thruster > --- UTILITY ---------- Experimental Cooling System Small Storage Unit Advanced Quantum Shading Machine Spectral Analyzer Improved Melee Analysis Suite Improved Melee Analysis Suite Advanced Melee Analysis Suite Advanced Reaction Control System Phase Shifter Graphene Brace Experimental EM Disruption Field Advanced Shield Generator Hacking Suite Hacking Suite Improved Hacking Suite > --- WEAPON ----------- Improved Datajack Ionic Axe > --- INVENTORY -------- Micro Fission Core Field Propulsion Array Advanced ECM Suite PSU Rigger Plasma Cutter Improved Plasma Cutter [Rating: 161] Favorites ----------- Power Micro Fission Core Engine Ion Engine Power Core Micro Fission Core Reactor Light Quantum Reactor Propulsion Improved Flight Unit Leg Aluminum Leg Hover Unit Antigrav Array Flight Unit Improved Flight Unit Utility Hacking Suite Device Graphene Brace Storage Small Storage Unit Processor Improved Signal Interpreter Hackware Hacking Suite Protection Hardened Light Armor Plating Weapon Ionic Axe Energy Gun Small Laser Ballistic Gun Light Assault Rifle Launcher Rocket Launcher Impact Weapon Hammer Slashing Weapon Ionic Axe Special Melee Weapon Improved Datajack Build | -11 -10 -10 -10 -9 -8 -7 -7 -7 -7 -7 -7 -6 -6 -5 -4 -3 -2 -1 -1 ------- Run | Scr Mat Min Exi Min Mat Fac Gar Fac Low Low Dat Pro Fac Fac Fac Res Res Acc Com Slots Evolved 18 | . . . . . 4 2 . . . . . . 2 2 2 2 2 2 . Power 1 | . . . . . . . . . . . . . . . . . . 1 . Propulsion 4 | . . . . . 1 . . . . . . . . 1 . 1 . 1 . Utility 13 | . . . . . 3 2 . . . . . . 2 1 2 1 2 . . Weapon . | . . . . . . . . . . . . . . . . . . . . Parts Attached 88 | . 2 . 1 6 5 4 . 9 1 3 . 3 2 10 3 3 3 12 21 Power 9 | . . . . 1 1 . . . . 1 . 1 . 1 . . . 1 3 Engine . | . . . . . . . . . . . . . . . . . . . . Core 6 | . . . . 1 1 . . . . 1 . 1 . 1 . . . . 1 Reactor 3 | . . . . . . . . . . . . . . . . . . 1 2 Propulsion 27 | . 2 . . 2 4 . . . . . . 1 . 5 . 1 . 7 5 Treads . | . . . . . . . . . . . . . . . . . . . . Leg . | . . . . . . . . . . . . . . . . . . . . Wheel . | . . . . . . . . . . . . . . . . . . . . Hover 1 | . . . . . . . . . . . . . . . . . . . 1 Flight 26 | . 2 . . 2 4 . . . . . . 1 . 5 . 1 . 7 4 Utility 40 | . . . . 1 . 2 . 6 1 2 . 1 2 3 3 1 3 4 11 Device 18 | . . . . . . . . . 1 2 . . . . 1 . 3 2 9 Storage . | . . . . . . . . . . . . . . . . . . . . Processor 6 | . . . . . . 1 . 1 . . . . . . . 1 . 1 2 Hackware 13 | . . . . . . 1 . 5 . . . . 2 2 2 . . 1 . Protection 3 | . . . . 1 . . . . . . . 1 . 1 . . . . . Artifact . | . . . . . . . . . . . . . . . . . . . . Weapon 12 | . . . 1 2 . 2 . 3 . . . . . 1 . 1 . . 2 Energy Gun . | . . . . . . . . . . . . . . . . . . . . Energy Cannon . | . . . . . . . . . . . . . . . . . . . . Ballistic Gun 2 | . . . 1 1 . . . . . . . . . . . . . . . Ballistic Cannon . | . . . . . . . . . . . . . . . . . . . . Launcher 2 | . . . . 1 . . . 1 . . . . . . . . . . . Special Weapon . | . . . . . . . . . . . . . . . . . . . . Impact Weapon 1 | . . . . . . 1 . . . . . . . . . . . . . Slashing Weapon 5 | . . . . . . 1 . 1 . . . . . 1 . . . . 2 Piercing Weapon . | . . . . . . . . . . . . . . . . . . . . Special Melee Weapon 2 | . . . . . . . . 1 . . . . . . . 1 . . . Unidentified Prototypes 7 | . . . . . 1 . . . . . . . . . . 1 . 2 3 Parts Lost 36 | . . . . 1 . . . . . 1 . 1 . 1 . 1 . 4 27 Power 3 | . . . . . . . . . . . . . . . . . . . 3 Propulsion 12 | . . . . 1 . . . . . . . 1 . . . . . 3 7 Utility 18 | . . . . . . . . . . . . . . 1 . 1 . 1 15 Weapon 3 | . . . . . . . . . . 1 . . . . . . . . 2 Highest Loss Streak 25 | . . . . 1 . . . . . 1 . 1 . 1 . 1 . 4 25 To Critical Strikes . | . . . . . . . . . . . . . . . . . . . . Average Slot Usage (%) 81 | . 80 71 71 72 54 51 53 83 83 78 84 84 86 88 91 89 94 92 84 Core 2 | . . . . . 9 6 . . . 1 7 7 6 5 5 4 4 . . Flight 22 | . 9 28 28 28 27 23 23 23 23 23 23 23 20 23 21 23 21 22 18 Device 4 | . . . . . . . . . 6 7 7 6 . . 3 2 7 11 15 Storage 6 | . 14 14 14 14 9 7 7 7 7 7 7 7 6 5 5 4 4 4 3 Processor 6 | . . . . . . . 7 3 7 7 7 7 6 5 5 5 8 9 16 Hackware 27 | . . . . . . 2 7 39 30 30 30 30 40 41 40 38 34 31 18 Protection 1 | . . . . 1 . . . . . . . . 6 3 5 4 4 1 . Ballistic Gun 2 | . 14 14 23 26 9 6 . . . . . . . . . . . . . Slashing Weapon 2 | . . . . . . . 7 5 7 . . . . 2 5 4 4 4 3 Special Melee Weapon 1 | . . . . . . . . 1 . . . . . . . 1 4 4 3 Naked Turns . | . . . . . . . . . . . . . . . . . . . . Heaviest Build 61 | 12 12 7 7 7 12 14 10 10 11 13 12 15 15 19 21 21 27 34 61 Greatest Support 69 | 20 20 8 8 8 15 15 15 15 15 15 15 16 16 22 22 28 28 45 69 Greatest Overweight (x) 1 | . . . . . . . . . . . . . . . . . . . 1 Average Overweight (x) . | . . . . . . . . . . . . . . . . . . . . Largest Inventory Capacity 8 | . 8 8 8 8 8 8 8 8 8 8 8 8 8 8 8 8 8 8 8 Average Capacity 7 | . 8 8 8 8 8 8 8 8 8 8 8 8 8 8 8 8 8 8 7 Most Carried 8 | . 8 8 8 8 8 8 8 8 8 8 7 7 8 8 8 8 8 8 8 Average Carried 7 | . 7 8 7 7 6 7 8 7 7 7 7 6 5 7 7 7 7 7 7 Final Capacity 8 | 8 8 8 8 8 8 8 8 8 8 8 8 8 8 8 8 8 8 8 5 Final Carried 8 | 6 8 8 8 8 8 8 8 8 8 7 7 7 8 8 8 8 8 8 2 Class Distribution -------------------- 41% | Wizard-Sprinter 31% | Hacker-Mutant 21% | Mutant 5% | Hacker-Sprinter Dominant Class ---------------- Mutant | -10/Materials Mutant | -10/Mines Mutant | -10/Exiles Mutant | -9/Mines Mutant | -8/Materials Mutant | -7/Factory Mutant | -7/Garrison Hacker-Mutant | -7/Factory Hacker-Mutant | -7/Lower Caves Hacker-Mutant | -7/Lower Caves Hacker-Mutant | -7/Data Miner Hacker-Mutant | -6/Proximity Caves Hacker-Mutant | -6/Factory Wizard-Sprinter | -5/Factory Wizard-Sprinter | -4/Factory Wizard-Sprinter | -3/Research Wizard-Sprinter | -2/Research Wizard-Sprinter | -1/Access Hacker-Sprinter | -1/Command Resources | -11 -10 -10 -10 -9 -8 -7 -7 -7 -7 -7 -7 -6 -6 -5 -4 -3 -2 -1 -1 ----------- Run | Scr Mat Min Exi Min Mat Fac Gar Fac Low Low Dat Pro Fac Fac Fac Res Res Acc Com Matter Collected 834 | 200 . . . 12 135 . . 120 42 3 . 50 . . . 170 20 38 44 Remotely . | . . . . . . . . . . . . . . . . . . . . Salvage Created 554 | . . . . 21 . . . 80 . . . . . . . 94 107 252 . Parts 35 | . . . . 5 . . . 7 . . . . . . . 2 3 18 . Haulers Intercepted 2 | . . . . . . . . . . . . . . . . 1 1 . . Recyclers Shooed . | . . . . . . . . . . . . . . . . . . . . Parts Field Recycled . | . . . . . . . . . . . . . . . . . . . . Retrieved Matter . | . . . . . . . . . . . . . . . . . . . . Parts Self-Destructed 12 | . . . . . . . . . . 3 . 9 . . . . . . . Prevented . | . . . . . . . . . . . . . . . . . . . . Kills | -11 -10 -10 -10 -9 -8 -7 -7 -7 -7 -7 -7 -6 -6 -5 -4 -3 -2 -1 -1 ------- Run | Scr Mat Min Exi Min Mat Fac Gar Fac Low Low Dat Pro Fac Fac Fac Res Res Acc Com Combat Hostiles Destroyed 4 | . . . . 3 . . . . . . . . . . . . . 1 . Melee 1 | . . . . . . . . . . . . . . . . . . 1 . Guns 1 | . . . . 1 . . . . . . . . . . . . . . . AOE 2 | . . . . 2 . . . . . . . . . . . . . . . Classes Destroyed 7 | . . . . 2 . . . 2 . . . . . . . 1 . 2 . Builder 1 | . . . . . . . . . . . . . . . . . . 1 . Tunneler 1 | . . . . 1 . . . . . . . . . . . . . . . Hauler 2 | . . . . . . . . . . . . . . . . 1 1 . . Recycler 1 | . . . . . . . . . . . . . . . . . . 1 . Operator 1 | . . . . . . . . 1 . . . . . . . . . . . Watcher 4 | . . . . . . . . 2 . . . . . . . . . 2 . Swarmer 4 | . . . . 3 . . . . . . . . . . . . . 1 . Best Kill Streak 4 | . . . . 4 . . . 1 . . . . . . . 1 1 2 . Combat Bots Only 3 | . . . . 3 . . . . . . . . . . . . . 1 . Max Kills in Single Turn 2 | . . . . 2 . . . 1 . . . . . . . 1 1 1 . Gunslinging . | . . . . . . . . . . . . . . . . . . . . Exploded 1 | . . . . 1 . . . . . . . . . . . . . . . Melee 1 | . . . . . . . . . . . . . . . . . . 1 . Uniques/NPCs Destroyed . | . . . . . . . . . . . . . . . . . . . . Combat | -11 -10 -10 -10 -9 -8 -7 -7 -7 -7 -7 -7 -6 -6 -5 -4 -3 -2 -1 -1 -------- Run | Scr Mat Min Exi Min Mat Fac Gar Fac Low Low Dat Pro Fac Fac Fac Res Res Acc Com Damage Taken 4575 | . . . . 144 30 . . 96 14 265 . 180 70 101 146 182 . 246 3101 Core 2148 | . . . . 21 . . . 66 . 136 . 118 40 . 62 68 . 71 1566 Absorbed by Shields . | . . . . . . . . . . . . . . . . . . . . Core Remaining (%) 92 | 100 . . . 91 100 . . . . . . 54 95 100 94 94 100 . . Volleys Fired 12 | . . . . 12 . . . . . . . . . . . . . . . Largest 2 | . . . . 2 . . . . . . . . . . . . . . . Hottest 40 | . . . . 40 . . . . . . . . . . . . . . . Shots Fired 22 | . . . . 22 . . . . . . . . . . . . . . . Gun 20 | . . . . 20 . . . . . . . . . . . . . . . Cannon . | . . . . . . . . . . . . . . . . . . . . Launcher 2 | . . . . 2 . . . . . . . . . . . . . . . Special . | . . . . . . . . . . . . . . . . . . . . Kinetic 20 | . . . . 20 . . . . . . . . . . . . . . . Thermal . | . . . . . . . . . . . . . . . . . . . . Explosive 2 | . . . . 2 . . . . . . . . . . . . . . . Electromagnetic . | . . . . . . . . . . . . . . . . . . . . Robot Hit Streak 1 | . . . . 1 . . . . . . . . . . . . . . . Robot Miss Streak 2 | . . . . 2 . . . . . . . . . . . . . . . Penetration Max . | . . . . . . . . . . . . . . . . . . . . Secondary Targets . | . . . . . . . . . . . . . . . . . . . . Shots Hit Robots 24 | . . . . 3 . . . 6 1 . . . . . . 5 1 8 . Core Hits 12 | . . . . 4 . . . 2 . . . . . . . 1 1 4 . Critical Kills . | . . . . . . . . . . . . . . . . . . . . Critical Parts Destroyed . | . . . . . . . . . . . . . . . . . . . . Critical Strikes 2 | . . . . . . . . 1 1 . . . . . . . . . . Sever 2 | . . . . . . . . 1 1 . . . . . . . . . . Melee Attacks 141 | . . . . . . 4 3 21 1 1 . . . 7 10 33 19 24 18 Impact 4 | . . . . . . 4 . . . . . . . . . . . . . Slashing 134 | . . . . . . . 3 19 1 1 . . . 7 10 32 19 24 18 Piercing . | . . . . . . . . . . . . . . . . . . . . Sneak Attacks 10 | . . . . . . . . 4 . . . . . . . 3 1 2 . Combat Hostiles . | . . . . . . . . . . . . . . . . . . . . Follow-up Attacks . | . . . . . . . . . . . . . . . . . . . . Damage Inflicted 1668 | . . . . 307 . . . 323 60 . . . . . . 273 91 511 103 Guns 23 | . . . . 23 . . . . . . . . . . . . . . . Cannons . | . . . . . . . . . . . . . . . . . . . . Explosions 284 | . . . . 284 . . . . . . . . . . . . . . . Melee 1258 | . . . . . . . . 323 60 . . . . . . 273 91 511 . Ramming 103 | . . . . . . . . . . . . . . . . . . . 103 Kinetic 23 | . . . . 23 . . . . . . . . . . . . . . . Thermal . | . . . . . . . . . . . . . . . . . . . . Explosive 284 | . . . . 284 . . . . . . . . . . . . . . . Electromagnetic . | . . . . . . . . . . . . . . . . . . . . Impact . | . . . . . . . . . . . . . . . . . . . . Slashing 1258 | . . . . . . . . 323 60 . . . . . . 273 91 511 . Piercing . | . . . . . . . . . . . . . . . . . . . . Highest Corruption 25 | . . . . . . . . . . . . . . . . . . 4 25 Average Corruption 6 | . . . . . . . . . . . . . . . . . . 2 15 Corruption Purged 4 | . . . . . . . . . . . . . . . . . . 4 . Corruption Blocked . | . . . . . . . . . . . . . . . . . . . . Effects 6 | . . . . . . . . . . . . . . . . . . . 6 Message Errors 2 | . . . . . . . . . . . . . . . . . . . 2 Matter Fused 1 | . . . . . . . . . . . . . . . . . . . 1 Data Loss (minor) 1 | . . . . . . . . . . . . . . . . . . . 1 Misdirections 2 | . . . . . . . . . . . . . . . . . . . 2 Overload Shots . | . . . . . . . . . . . . . . . . . . . . Overflow Damage 206 | . . . . 36 . . . 82 . . . . . . . 8 . 80 . Projectiles . | . . . . . . . . . . . . . . . . . . . . Explosions 36 | . . . . 36 . . . . . . . . . . . . . . . Melee 170 | . . . . . . . . 82 . . . . . . . 8 . 80 . Knockbacks . | . . . . . . . . . . . . . . . . . . . . Impact . | . . . . . . . . . . . . . . . . . . . . Kinetic . | . . . . . . . . . . . . . . . . . . . . Secondary . | . . . . . . . . . . . . . . . . . . . . Self-Inflicted Damage 103 | . . . . . . . . . . . . . . . . . . . 103 Shots . | . . . . . . . . . . . . . . . . . . . . Rammed . | . . . . . . . . . . . . . . . . . . . . Targets Rammed . | . . . . . . . . . . . . . . . . . . . . Kicked . | . . . . . . . . . . . . . . . . . . . . Crushed . | . . . . . . . . . . . . . . . . . . . . Highest Temperature 30 | . . . . 8 . . . . . 5 . 10 . . 3 30 . 7 . Average Temperature 7 | . . . . 3 . . . . . 3 . 10 . . 3 17 . 6 . Received Heat Transfer 427 | . . . . 9 9 . . 18 9 99 . 45 27 27 21 55 . . 108 Siege Activations . | . . . . . . . . . . . . . . . . . . . . Robots Corrupted . | . . . . . . . . . . . . . . . . . . . . Combat Hostiles . | . . . . . . . . . . . . . . . . . . . . Parts Fried . | . . . . . . . . . . . . . . . . . . . . Impact Corruptions . | . . . . . . . . . . . . . . . . . . . . Robots Melted . | . . . . . . . . . . . . . . . . . . . . Combat Hostiles . | . . . . . . . . . . . . . . . . . . . . Parts Melted . | . . . . . . . . . . . . . . . . . . . . Heat Transferred . | . . . . . . . . . . . . . . . . . . . . Parts Sabotaged . | . . . . . . . . . . . . . . . . . . . . Parts Stolen . | . . . . . . . . . . . . . . . . . . . . Parts Stripped . | . . . . . . . . . . . . . . . . . . . . Power Chain Reactions . | . . . . . . . . . . . . . . . . . . . . Missiles Intercepted . | . . . . . . . . . . . . . . . . . . . . Alert | -11 -10 -10 -10 -9 -8 -7 -7 -7 -7 -7 -7 -6 -6 -5 -4 -3 -2 -1 -1 ------- Run | Scr Mat Min Exi Min Mat Fac Gar Fac Low Low Dat Pro Fac Fac Fac Res Res Acc Com Peak Influence 505 | . 32 12 . 160 99 144 140 281 . . . . 262 214 313 322 331 255 505 Initial 198 | . . 12 . . 42 44 105 81 . . . . 135 128 22 164 120 198 163 Average 143 | . 12 12 . 111 53 83 105 177 . . . . 180 32 108 200 191 178 287 Maximum Alert Level 2 | . . . . . . . . 1 . . . . 1 1 1 1 1 1 2 Low Security (%) 76 | . 100 100 . 100 100 100 100 71 . . . . 72 98 86 61 61 68 30 Level 1 20 | . . . . . . . . 28 . . . . 27 1 13 38 38 31 40 Level 2 3 | . . . . . . . . . . . . . . . . . . . 28 Level 3 . | . . . . . . . . . . . . . . . . . . . . Level 4 . | . . . . . . . . . . . . . . . . . . . . Level 5 . | . . . . . . . . . . . . . . . . . . . . High Security . | . . . . . . . . . . . . . . . . . . . . Max Security . | . . . . . . . . . . . . . . . . . . . . Squads Dispatched 18 | . 1 . . . 1 . . 5 . 1 . . 1 2 1 1 . 3 2 Investigation 7 | . . . . . 1 . . 3 . . . . 1 . 1 . . 1 . Extermination 2 | . . . . . . . . 1 . . . . . . . . . 1 . Reinforcement 7 | . 1 . . . . . . 1 . . . . . 1 . 1 . 1 2 Assault 2 | . . . . . . . . . . 1 . . . 1 . . . . . Garrison . | . . . . . . . . . . . . . . . . . . . . Intercept . | . . . . . . . . . . . . . . . . . . . . Searches Triggered . | . . . . . . . . . . . . . . . . . . . . Data Miner Redirects 2 | . . . . . . . . . . . . . . . 1 . . 1 . Construction Impeded . | . . . . . . . . . . . . . . . . . . . . Haulers Reinforced 2 | . . . . . . . . 1 . . . . . . . 1 . . . Active Scanning Responses . | . . . . . . . . . . . . . . . . . . . . Cargo Convoy Interrupts . | . . . . . . . . . . . . . . . . . . . . Stealth | -11 -10 -10 -10 -9 -8 -7 -7 -7 -7 -7 -7 -6 -6 -5 -4 -3 -2 -1 -1 --------- Run | Scr Mat Min Exi Min Mat Fac Gar Fac Low Low Dat Pro Fac Fac Fac Res Res Acc Com Distress Signals 11 | . . . . . . . . 1 . . . . . 2 4 1 1 2 . Communications Jammed . | . . . . . . . . . . . . . . . . . . . . Distress Signals . | . . . . . . . . . . . . . . . . . . . . Times Spotted 164 | . 2 . . 5 5 4 4 7 5 17 . 16 13 15 18 12 7 17 17 Peak Tracking Total 14 | . 2 . . 3 5 2 7 4 4 13 . 7 8 6 11 14 4 8 8 Tactical Retreats 36 | . . . . . 1 . 1 3 1 4 . 2 1 5 5 4 1 3 5 Traps | -11 -10 -10 -10 -9 -8 -7 -7 -7 -7 -7 -7 -6 -6 -5 -4 -3 -2 -1 -1 ------- Run | Scr Mat Min Exi Min Mat Fac Gar Fac Low Low Dat Pro Fac Fac Fac Res Res Acc Com Traps Triggered 4 | . . . . . . . . . . . . . 1 1 . . . 2 . Indirectly . | . . . . . . . . . . . . . . . . . . . . Trap Hack Attempts . | . . . . . . . . . . . . . . . . . . . . Triggered . | . . . . . . . . . . . . . . . . . . . . Disarmed . | . . . . . . . . . . . . . . . . . . . . Reprogrammed 10 | . . . . . . . . . . . . . . . . . . 10 . Reused 3 | . . . . . . . . . . . . . . . . . . 3 . Traps Extracted . | . . . . . . . . . . . . . . . . . . . . Installed . | . . . . . . . . . . . . . . . . . . . . Triggered 4 | . . . . . . . . . . 1 . . . . . . . 3 . Power Sources Rigged 2 | . . . . . . . . . . 1 . . . . . . . . 1 Exploded 2 | . . . . . . . . . . 1 . . . . . . . . 1 Machines | -11 -10 -10 -10 -9 -8 -7 -7 -7 -7 -7 -7 -6 -6 -5 -4 -3 -2 -1 -1 ---------- Run | Scr Mat Min Exi Min Mat Fac Gar Fac Low Low Dat Pro Fac Fac Fac Res Res Acc Com Machines Disabled 8 | . . . . 1 . 1 . . . . . 4 . . . . . 1 1 Max in Single Turn 1 | . . . . . . 1 . . . . . . . . . . . 1 1 Garrison Access 3 | . . . . . . 1 . . . . . . . 2 . . . . . Machines Sabotaged . | . . . . . . . . . . . . . . . . . . . . Garrisons Compromised 1 | . . . . . . . . . . . . . . 1 . . . . . Overloaded Fab Kills . | . . . . . . . . . . . . . . . . . . . . Hacking | -11 -10 -10 -10 -9 -8 -7 -7 -7 -7 -7 -7 -6 -6 -5 -4 -3 -2 -1 -1 --------- Run | Scr Mat Min Exi Min Mat Fac Gar Fac Low Low Dat Pro Fac Fac Fac Res Res Acc Com Machines Accessed 74 | . 1 . 1 1 4 8 . 8 2 . 4 1 5 6 6 6 8 7 6 Terminals 47 | . 1 . . . 3 5 . 5 1 . . 1 2 4 4 5 5 5 6 Fabricators 8 | . . . . . . 1 . 2 . . . . 2 1 1 . 1 . . Repair Stations . | . . . . . . . . . . . . . . . . . . . . Recycling Units 2 | . . . . . 1 . . . . . . . . . . . . 1 . Scanalyzers . | . . . . . . . . . . . . . . . . . . . . Garrison Access 10 | . . . . . . 2 . 1 . . . . 1 1 1 1 2 1 . Total Hacks 324 | . 6 . 1 1 17 12 . 25 3 . 31 4 21 37 26 42 38 38 22 Successful 228 | . 5 . 1 1 10 7 . 13 3 . 31 4 14 24 17 34 25 27 12 Failed 92 | . 1 . . . 7 5 . 12 . . . . 6 12 9 7 12 11 10 Catastrophic 9 | . . . . . . 2 . . . . . . 1 . 1 . 2 3 . Database Lockouts 4 | . . . . . . . . . . . . . 1 1 . 1 1 . . Manual 186 | . 7 . 1 . 15 6 . 15 . . . . 17 18 22 40 23 15 7 Terminals 239 | . 6 . . . 14 9 . 18 2 . . 4 14 29 18 39 30 34 22 Fabricators 20 | . . . . . . 1 . 5 . . . . 4 5 4 . 1 . . Repair Stations . | . . . . . . . . . . . . . . . . . . . . Recycling Units 4 | . . . . . 3 . . . . . . . . . . . . 1 . Scanalyzers . | . . . . . . . . . . . . . . . . . . . . Garrison Access 27 | . . . . . . 2 . 2 . . . . 3 3 4 3 7 3 . Terminal Hacks 157 | . 3 . 1 1 3 3 . 5 3 . 31 4 7 15 5 28 18 19 11 Record 39 | . . . . . 1 . . . 2 . 11 4 . 1 . 10 7 3 . Part Schematic 22 | . . . . . . 1 . . . . 12 . . 5 2 . 2 . . Robot Schematic 8 | . . . . . . . . . . . 5 . . . . . 3 . . Robot Analysis 19 | . 2 . . . 1 . . . . . . . . . 1 10 1 2 2 Prototype ID Bank 7 | . . . . . . . . . . . 3 . 1 . 1 2 . . . Open Door 3 | . . . . 1 . . . . 1 . . . . . . . . . 1 Level Access Points 7 | . . . . . . . . 1 . . . . 1 1 . 1 1 1 1 Branch Access Points 4 | . . . . . . . . 1 . . . . 1 . . . . 1 1 Emergency Access Points 1 | . . . . . . . . . . . . . . . . . . . 1 Machine Index 6 | . . . . . . . . . . . . . 1 1 1 1 1 . 1 Terminal Index 7 | . 1 . . . 1 1 . 1 . . . . . . . . 1 1 1 Unreport Threat 6 | . . . . . . . . . . . . . . 2 . 2 . 2 . Locate Traps 2 | . . . . . . . . . . . . . . . . . . 1 1 Reprogram Traps 2 | . . . . . . . . . . . . . . . . . . 2 . Maintenance Status 3 | . . . . . . . . . . . . . 1 1 . . . . 1 Recall Extermination 2 | . . . . . . . . 1 . . . . . . . . . 1 . Hauler Manifests 1 | . . . . . . . . . . . . . . . . 1 . . . Registered Components 6 | . . . . . . 1 . . . . . . 1 1 . 1 . 1 1 Registered Prototypes 6 | . . . . . . . . 1 . . . . 1 2 . . 1 1 . Zone Layout 5 | . . . . . . . . . . . . . . 1 . . 1 3 . EX-Prototype ID Bank 1 | . . . 1 . . . . . . . . . . . . . . . . Fabricator Hacks 10 | . . . . . . . . 2 . . . . 2 3 2 . 1 . . Network Status 2 | . . . . . . . . . . . . . 1 . . . 1 . . Load Schematic 4 | . . . . . . . . 1 . . . . 1 1 1 . . . . Build 4 | . . . . . . . . 1 . . . . . 2 1 . . . . Repair Station Hacks . | . . . . . . . . . . . . . . . . . . . . Recycling Unit Hacks 2 | . . . . . 1 . . . . . . . . . . . . 1 . Report Inventory 2 | . . . . . 1 . . . . . . . . . . . . 1 . Scanalyzer . | . . . . . . . . . . . . . . . . . . . . Garrison Access Hacks 4 | . . . . . . 2 . 1 . . . . . 1 . . . . . Unlock Access 1 | . . . . . . 1 . . . . . . . . . . . . . Seal Access 2 | . . . . . . 1 . . . . . . . 1 . . . . . Coupler Status 1 | . . . . . . . . 1 . . . . . . . . . . . Unauthorized Hacks 55 | . 2 . . . 6 2 . 5 . . . . 5 5 10 6 6 7 1 Terminals 32 | . 2 . . . 5 2 . 3 . . . . 1 5 6 3 . 4 1 Track 4 | . . . . . . . . 1 . . . . . 1 1 1 . . . Assimilate 9 | . . . . . 1 1 . . . . . . 1 1 2 1 . 1 1 Botnet 15 | . 1 . . . 3 1 . 2 . . . . . 2 2 1 . 3 . Operators 4 | . 1 . . . 1 . . . . . . . . 1 1 . . . . Fabricators 4 | . . . . . . . . 1 . . . . 2 . 1 . . . . Prioritize 1 | . . . . . . . . . . . . . . . 1 . . . . Fabnet 1 | . . . . . . . . 1 . . . . . . . . . . . Haulers 1 | . . . . . . . . . . . . . 1 . . . . . . Recompile 1 | . . . . . . . . . . . . . 1 . . . . . . Repair Stations . | . . . . . . . . . . . . . . . . . . . . Recycling Units 1 | . . . . . 1 . . . . . . . . . . . . . . Reject 1 | . . . . . 1 . . . . . . . . . . . . . . Scanalyzers . | . . . . . . . . . . . . . . . . . . . . Garrison Access 18 | . . . . . . . . 1 . . . . 2 . 3 3 6 3 . Broadcast 6 | . . . . . . . . . . . . . 1 . 1 1 2 1 . Reprogram 6 | . . . . . . . . . . . . . 1 . 1 1 2 1 . Watchers 5 | . . . . . . . . . . . . . . . 1 1 2 1 . Eject 1 | . . . . . . . . 1 . . . . . . . . . . . Data Cores Recovered . | . . . . . . . . . . . . . . . . . . . . Used . | . . . . . . . . . . . . . . . . . . . . Hacking Detections 53 | . 1 . . . 4 6 . 6 1 . . 1 3 5 6 4 5 6 5 Full Trace Events 5 | . . . . . 1 . . 2 . . . . . . 1 . . 1 . Feedback Events 1 | . . . . . . . . . . . . . . . . . . 1 . Hackware Fried 1 | . . . . . . . . . . . . . . . . . . 1 . Feedback Blocked . | . . . . . . . . . . . . . . . . . . . . Robot Schematics Acquired 8 | . . . . . . . . . . . 5 . . . . . 3 . . Robots Built . | . . . . . . . . . . . . . . . . . . . . Authchips . | . . . . . . . . . . . . . . . . . . . . Time . | . . . . . . . . . . . . . . . . . . . . Total Robot Build Rating . | . . . . . . . . . . . . . . . . . . . . Part Schematics Acquired 22 | . . . . . . 1 . . . . 12 . . 5 2 . 2 . . Parts Built 4 | . . . . . . . . 1 . . . . . 2 1 . . . . Authchips 1 | . . . . . . . . . . . . . . 1 . . . . . Time 234 | . . . . . . . . 36 . . . . . 160 38 . . . . Total Part Build Rating 19 | . . . . . . . . 3 . . . . . 11 5 . . . . Parts Repaired . | . . . . . . . . . . . . . . . . . . . . Time . | . . . . . . . . . . . . . . . . . . . . Parts Recycled . | . . . . . . . . . . . . . . . . . . . . Recycled Matter . | . . . . . . . . . . . . . . . . . . . . Retrieved Matter . | . . . . . . . . . . . . . . . . . . . . Retrieved Components . | . . . . . . . . . . . . . . . . . . . . Parts Scanalyzed . | . . . . . . . . . . . . . . . . . . . . Part Schematics Acquired . | . . . . . . . . . . . . . . . . . . . . Parts Damaged . | . . . . . . . . . . . . . . . . . . . . Bothacking | -11 -10 -10 -10 -9 -8 -7 -7 -7 -7 -7 -7 -6 -6 -5 -4 -3 -2 -1 -1 ------------ Run | Scr Mat Min Exi Min Mat Fac Gar Fac Low Low Dat Pro Fac Fac Fac Res Res Acc Com Used RIF Installer 1 | . . . . . . . 1 . . . . . . . . . . . . Robots Hacked 3 | . . . . . . . . 1 . . . 1 . . . 1 . . . Non-combat 2 | . . . . . . . . 1 . . . . . . . 1 . . . Combat 1 | . . . . . . . . . . . . 1 . . . . . . . Robot Hacks Applied 2 | . . . . . . . . 1 . . . . . . . 1 . . . no_distress 1 | . . . . . . . . . . . . . . . . 1 . . . drop_inventory 1 | . . . . . . . . 1 . . . . . . . . . . . Relay Couplers Released 4 | . . . . . . . . 3 . . . . . 1 . . . . . Ejected 3 | . . . . . . . . 3 . . . . . . . . . . . Machine Destruction 1 | . . . . . . . . . . . . . . 1 . . . . . Attached 3 | . . . . . . . . 3 . . . . . . . . . . . Fabnet Peak Effective % 3 | . . . . . . . . . . . . 3 3 1 . . . . . Autooverrided 1 | . . . . . . . . . . . . 1 . . . . . . . Robots Rewired . | . . . . . . . . . . . . . . . . . . . . Allies Hacked . | . . . . . . . . . . . . . . . . . . . . Hacks Repelled . | . . . . . . . . . . . . . . . . . . . . Allies | -11 -10 -10 -10 -9 -8 -7 -7 -7 -7 -7 -7 -6 -6 -5 -4 -3 -2 -1 -1 -------- Run | Scr Mat Min Exi Min Mat Fac Gar Fac Low Low Dat Pro Fac Fac Fac Res Res Acc Com Total Allies 17 | . . . . 2 1 1 . . . . . 2 1 5 2 1 . 1 1 Largest Group 4 | . . . . 2 1 2 2 . . . . 2 1 4 2 1 . 1 1 Highest-Rated Group 125 | . . . . 46 10 20 20 . . . . 125 10 73 36 45 . 26 45 Highest-Rated Ally 96 | . . . . 31 10 10 10 . . . . 96 10 31 26 45 . 26 45 Total Orders . | . . . . . . . . . . . . . . . . . . . . Ally Attacks 35 | . . . . 3 . . . . . . . 22 . 10 . . . . . Total Damage 1020 | . . . . 41 . . . . . . . 842 . 137 . . . . . Kills 8 | . . . . 1 . . . . . . . 7 . . . . . . . Allies Corrupted . | . . . . . . . . . . . . . . . . . . . . Allies Melted . | . . . . . . . . . . . . . . . . . . . . Intel | -11 -10 -10 -10 -9 -8 -7 -7 -7 -7 -7 -7 -6 -6 -5 -4 -3 -2 -1 -1 ------- Run | Scr Mat Min Exi Min Mat Fac Gar Fac Low Low Dat Pro Fac Fac Fac Res Res Acc Com Robot Analysis Total 19 | . 2 . . . 1 . . . . . . . . . 1 10 1 2 2 Derelict Logs Recovered 5 | . . . . . . . . . 2 2 . 1 . . . . . . . Drone Launches . | . . . . . . . . . . . . . . . . . . . . Drone Recoveries . | . . . . . . . . . . . . . . . . . . . . Exploration | -11 -10 -10 -10 -9 -8 -7 -7 -7 -7 -7 -7 -6 -6 -5 -4 -3 -2 -1 -1 ------------- Run | Scr Mat Min Exi Min Mat Fac Gar Fac Low Low Dat Pro Fac Fac Fac Res Res Acc Com Turns Passed 4554 | . 119 42 133 102 63 228 221 460 190 326 30 235 184 581 322 339 232 305 442 Spaces Moved 9724 | 1 148 112 351 166 153 605 118 960 406 560 89 639 474 778 814 751 576 929 1094 Core 18 | . . . . . . . . . . . . . . . . . . . 18 Treads . | . . . . . . . . . . . . . . . . . . . . Legs 60 | 1 59 . . . . . . . . . . . . . . . . . . Wheels . | . . . . . . . . . . . . . . . . . . . . Hover . | . . . . . . . . . . . . . . . . . . . . Flight 9646 | . 89 112 351 166 153 605 118 960 406 560 89 639 474 778 814 751 576 929 1076 Fastest Speed 15 | 120 37 37 37 37 34 34 34 34 34 34 34 34 34 28 28 25 25 15 17 Average Speed 30 | 120 70 37 37 37 34 34 34 34 34 34 34 34 34 28 28 25 25 22 25 Slowest Speed 120 | 120 120 37 37 37 34 34 34 34 34 34 34 34 34 29 28 25 25 29 100 Overloaded Moves 120 | . . . . . . . . . . . . . . . . . . 79 41 Propulsion Burnouts . | . . . . . . . . . . . . . . . . . . . . Robots Hopped 49 | . . . . 2 1 . . 1 . 2 . 2 7 6 1 1 3 4 19 Cave-ins Triggered . | . . . . . . . . . . . . . . . . . . . . Exploration Rate (%) 37 | 2 31 26 87 53 21 18 40 35 58 64 72 78 15 22 20 22 23 25 40 Regions Visited 19 Branch Regions 8 Pre-discovered Areas 3 | . . . . . . . . . . . 1 2 . . . . . . . Known Exits Taken 12 | . . . . . . 1 . 1 1 1 1 1 1 1 1 1 1 1 . Unknown Exits Taken 6 | 1 1 1 1 1 1 . . . . . . . . . . . . . . Scrap Searched 3 | . . . . . . . . . 2 1 . . . . . . . . . Spaces Dug 91 | . . . . . . . . 11 . . . . . 7 10 20 17 14 12 Terrain Destroyed 112 | . . . . 21 . . . 11 . . . . . 7 10 20 17 14 12 Melee 91 | . . . . . . . . 11 . . . . . 7 10 20 17 14 12 Projectile . | . . . . . . . . . . . . . . . . . . . . AOE 21 | . . . . 21 . . . . . . . . . . . . . . . Terrain Rammed 12 | . . . . . . . . . . . . . . . . . . . 12 Walls Destroyed . | . . . . . . . . . . . . . . . . . . . . Machines Disabled . | . . . . . . . . . . . . . . . . . . . . Actions | -11 -10 -10 -10 -9 -8 -7 -7 -7 -7 -7 -7 -6 -6 -5 -4 -3 -2 -1 -1 --------- Run | Scr Mat Min Exi Min Mat Fac Gar Fac Low Low Dat Pro Fac Fac Fac Res Res Acc Com Total 11007 | . 166 111 353 185 161 621 292 1054 456 690 88 653 489 1119 890 851 630 985 1213 Wait 974 | . . . . . 3 . 172 52 45 126 . 12 . 323 62 64 34 15 66 Move 9611 | . 147 111 350 162 150 605 117 957 405 555 88 634 460 765 811 748 569 920 1057 Hop 46 | . . . . 1 1 . . 1 . 2 . 2 6 6 1 1 3 4 18 Pick Up 40 | . 8 . 1 1 . 2 . 6 2 1 . 1 3 3 2 2 1 2 5 Fast Attach 39 | . 1 . . 1 1 4 . 6 . . . 1 . 3 2 1 3 6 10 Attach 31 | . 1 . . 2 2 . . 3 1 1 . 1 2 3 1 2 . 3 9 Detach 7 | . 1 . . 2 . 1 . . . . . . . . . . . 1 2 Swap 18 | . . . 1 3 2 . . . . 2 . 1 . 4 . . . 3 2 Drop 56 | . 8 . 1 1 2 5 . 8 2 1 . 1 . 5 1 . 1 7 13 Fire 12 | . . . . 12 . . . . . . . . . . . . . . . Melee 141 | . . . . . . 4 3 21 1 1 . . . 7 10 33 19 24 18 Ram 12 | . . . . . . . . . . . . . . . . . . . 12 Kick . | . . . . . . . . . . . . . . . . . . . . Crush . | . . . . . . . . . . . . . . . . . . . . Escape Stasis 18 | . . . . . . . . . . . . . 18 . . . . . . Rewire . | . . . . . . . . . . . . . . . . . . . . Trap 2 | . . . . . . . . . . 1 . . . . . . . . 1 Miscellaneous . | . . . . . . . . . . . . . . . . . . . . Route ------- -11/Scrapyard -10/Materials (discovered 2 exits: [*Mat] / *Min) -10/Mines -10/Exiles (discovered 2 exits: *Min x2) -9/Mines -8/Materials -7/Factory (discovered 2 exits: *Fac / Gar) -7/Garrison -7/Factory (discovered 7 exits: *Fac x4 / Sto / *Low x2) -7/Lower Caves -7/Lower Caves -7/Data Miner -6/Proximity Caves -6/Factory (discovered 6 exits: *Fac x4 / Low x2) -5/Factory (discovered 7 exits: *Fac x4 / *Upp x2 / Ext) -4/Factory (discovered 2 exits: *Res / *Upp) -3/Research (discovered 3 exits: *Res x3) -2/Research (discovered 4 exits: *Acc x3 / [Tes]) -1/Access (discovered 2 exits: Sur / *Com) -1/Command (discovered 2 exits: Sur x2) History --------- Turn | Location | Event 1 | -11/Scrapyard | Discovered new exit (range 0) 1 | -11/Scrapyard | Entered Materials 66 | -10/Materials | Discovered new exit (range 15) 72 | -10/Materials | Discovered new exit (range 15) 120 | -10/Materials | Entered Mines 153 | -10/Mines | Deemed a non-threat by the Exiles lab entrance 153 | -10/Mines | Discovered new exit (range 5) 159 | -10/Mines | Met a Derelict bent on vengeance 162 | -10/Mines | Entered Exiles 167 | -10/Exiles | Discovered new exit (range 15) 172 | -10/Exiles | Met 8R-AWN 178 | -10/Exiles | Met EX-HEX 188 | -10/Exiles | Met EX-BIN 192 | -10/Exiles | Aligned with FarCom system 193 | -10/Exiles | Given EX-Vault access code 203 | -10/Exiles | Opened EX-Vault 207 | -10/Exiles | Found PSU Rigger 215 | -10/Exiles | Warned to stay clear of 0b10 Research branches 226 | -10/Exiles | Met EX-DEC 238 | -10/Exiles | Visited The Gauntlet 291 | -10/Exiles | Discovered new exit (range 14) 295 | -10/Exiles | Left Exiles lab with PSU Rigger 295 | -10/Exiles | Entered Mines 339 | -9/Mines | Build established: Mutant 374 | -9/Mines | Met a Derelict who couldn't figure out how to use a Trap Extractor 395 | -9/Mines | Discovered new exit (range 3) 397 | -9/Mines | Entered Materials 397 | -8/Materials | Evolved 4 slots: Propulsion x1, Utility x3 451 | -8/Materials | Discovered new exit (range 11) 460 | -8/Materials | Entered Factory 460 | -7/Factory | Accompanied by 1 ally 460 | -7/Factory | Evolved 2 slots: Utility x2 569 | -7/Factory | Discovered new exit (range 15) 688 | -7/Factory | Identified exit to Garrison 688 | -7/Factory | Entered Garrison 688 | -7/Garrison | Accompanied by 2 allies 690 | -7/Garrison | Installed Relay Interface Framework 894 | -7/Garrison | Triggered checkpoint 905 | -7/Garrison | Discovered new exit (range 9) 909 | -7/Garrison | Entered Factory 909 | -7/Factory | Accompanied by 1 ally 919 | -7/Factory | Identified exit to Factory 1063 | -7/Factory | Identified exit to Storage 1063 | -7/Factory | Identified exit to Lower Caves 1106 | -7/Factory | Fabricated Hacking Suite (x1) 1206 | -7/Factory | Build established: Hacker-Mutant 1369 | -7/Factory | Entered Lower Caves 1406 | -7/Lower Caves | Encountered a Warlord checkpoint 1444 | -7/Lower Caves | Learned location of 1 exit from Factory 1555 | -7/Lower Caves | Discovered new exit (range 12) 1559 | -7/Lower Caves | Identified exit to Lower Caves 1559 | -7/Lower Caves | Entered another Lower Caves area 1571 | -7/Lower Caves | Attracted the attention of an 0b10 outpost 1585 | -7/Lower Caves | Encountered a Warlord checkpoint 1865 | -7/Lower Caves | Spotted B-75 Beast 1873 | -7/Lower Caves | Discovered new exit (range 12) 1885 | -7/Lower Caves | Identified exit to Data Miner 1885 | -7/Lower Caves | Entered Data Miner 1885 | -7/Data Miner | Discovered new exit (range 6) 1892 | -7/Data Miner | Met Data Miner 1898 | -7/Data Miner | Learned location of Section 7 (-2) 1898 | -7/Data Miner | Acquired the access code to Warlord's prototype stash 1905 | -7/Data Miner | Received God Mode back door access code from Data Miner 1915 | -7/Data Miner | Identified exit to Proximity Caves 1915 | -7/Data Miner | Entered Proximity Caves 1971 | -6/Proximity Caves | Escorted by Enhanced Grunt 1978 | -6/Proximity Caves | Learned location of Armory (-4) 1978 | -6/Proximity Caves | Learned Factory garrison access intel 1979 | -6/Proximity Caves | Attracted the attention of an 0b10 base 2036 | -6/Proximity Caves | Learned location of Extension (-5) 2147 | -6/Proximity Caves | Discovered exit to Factory (range 7) 2150 | -6/Proximity Caves | Entered Factory 2150 | -6/Factory | Evolved 2 slots: Utility x2 2151 | -6/Factory | Identified exit to Lower Caves 2152 | -6/Factory | Identified exit to Factory 2153 | -6/Factory | Loaded intel: 3 garrison access locations 2252 | -6/Factory | Central database locked down 2334 | -6/Factory | Entered another Factory area 2334 | -5/Factory | Evolved 2 slots: Propulsion x1, Utility x1 2335 | -5/Factory | Identified exit to Upper Caves 2335 | -5/Factory | Identified exit to Extension 2424 | -5/Factory | Identified exit to Factory 2447 | -5/Factory | Discovered exit to Upper Caves (range 7) 2465 | -5/Factory | Central database locked down 2642 | -5/Factory | Fabricated Ionic Axe (x1) 2701 | -5/Factory | Build established: Wizard-Sprinter 2718 | -5/Factory | Fabricated Cld. Cesium-ion Thruster (x1) 2915 | -5/Factory | Entered another Factory area 2915 | -4/Factory | Evolved 2 slots: Utility x2 2964 | -4/Factory | Discovered new exit (range 8) 2966 | -4/Factory | Identified exit to Research 2980 | -4/Factory | Discovered new exit (range 12) 2985 | -4/Factory | Identified exit to Upper Caves 3191 | -4/Factory | Incoming investigation squad redirected 3210 | -4/Factory | Fabricated Cld. Cesium-ion Thruster (x1) 3237 | -4/Factory | Entered Research 3237 | -3/Research | Evolved 2 slots: Propulsion x1, Utility x1 3402 | -3/Research | Identified exit to Research 3502 | -3/Research | Found Prototype Processor 3502 | -3/Research | Identified Spectral Analyzer 3518 | -3/Research | Central database locked down 3576 | -3/Research | Entered another Research area 3576 | -2/Research | Evolved 2 slots: Utility x2 3611 | -2/Research | Found Exp. EM Disruption Field 3707 | -2/Research | Identified exit to Access 3769 | -2/Research | Central database locked down 3778 | -2/Research | Discovered new exit (range 17) 3808 | -2/Research | Entered Access 3808 | -1/Access | Evolved 2 slots: Power x1, Propulsion x1 3821 | -1/Access | Identified exit to Surface 3847 | -1/Access | Identified exit to Command 4069 | -1/Access | Hacking Suite fried by hacking feedback 4089 | -1/Access | Incoming investigation squad redirected 4108 | -1/Access | Lost 4 parts (3n1u) 4113 | -1/Access | Entered Command 4464 | -1/Command | Spotted M Guard 4464 | -1/Command | Spotted M Guard 4470 | -1/Command | Spotted Combat Programmer 4470 | -1/Command | Spotted Combat Programmer 4478 | -1/Command | Met MAIN.C 4478 | -1/Command | 0b10 Conduit disabled 4510 | -1/Command | System corruption reached 10% 4526 | -1/Command | Core integrity fell below 50% 4533 | -1/Command | Core integrity fell below 20% 4555 | -1/Command | Destroyed by Combat Programmer with EMDS Last Messages --------------- 04527_ Penetrated by EMDS Slug. 04530_ PSU Rigger destroyed. 04530_ Acquired 10 matter. 04531_ Knocked back. 04533_ Penetrated by EMDS Slug. 04533_ Hacking Suite destroyed. 04533_ Graphene Brace destroyed. 04534_ Combat Programmer knocked back. 04535_ Penetrated by EMDS Slug. 04535_ Broken Exp. Q-thruster destroyed. 04536_ Combat Programmer resets Combat Programmer, system corruption cleaned. 04538_ Rigged Quantum Reactor explodes. 04539_ Penetrated by EMDS Slug. 04540_ EMDS Slug penetrates Reinforced Barrier. 04541_ EMDS Slug penetrates MAIN.C. 04543_ System corrupted: Component data lost. 04544_ EMDS Slug penetrates MAIN.C. 04545_ EMDS Slug penetrates 0b10 Conduit. 04553_ Penetrated by EMDS Slug. Map ----- +----------------------------------------------------+ | ?????????????????????????????????????????????????? | | ?????????????????????????????????????????????????? | | ?????????????????????????????????????????????????? | | ?????????????????????????????????????????????????? | | ?????????????????????????????????????????????????? | | ?????????????????????????????????????????????????? | | ?????????????????????????????????????????????????? | | ?????????????????????????????????????????????????? | | ?????????????????????????????????????????????????? | | ?????????????????????????????????????????????????? | | ?????????????????????????????????????????????????? | | ?????????????????????????????????????????????????? | | ?????????????????????????????????????????????????? | | ?????????????????????????????????????????????????? | | ?????????????????????????????????????????????????? | | ?????????????????????????????????????????????????? | | ?????????????????????????????????????????????????? | | ?????????????????????????????????????????????????? | | ?????????????????????????????????????????????????? | | ################?????????????????????????????????? | | " """" #?????????????????????????????????? | | "" #?????????????????????????????????? | | "" #######################???????????? | | """"" / #???????????? | | """ p #???????????? | | """" p @ #???????????? | | """" ################### #???????????? | | """" #?????????????????# #???????????? | | "" #?????????????????# ##?#####?#### | | " #?????????????????# T#?# #?# | | " """"" #?????????????????#+++#### ### | | """""" ""#?????????????????# | | """"" ""#?????????????????# | | " " " #?????????????????# | | " " #?????????????????# | | " "" " #?????????????????# | | """ " """" #?????????????????# # | | " " #?????????????????###### # | | """ " " " #?????????????????????# #### | | "" " """"""""#?????????????????????# #??? | | "" " " #?????????????????????## #??? | | ################??????????????????????### ###??? | | ????????????????????????????????????????# #????? | | ????????????????????????????????????????# #????? | | ????????????????????????????????????????# #????? | | ????????????????????????????????????????# #????? | | ????????????????????????????????????????# #????? | | ????????????????????????????????????????# #????? | | ????????????????????????????????????????# #????? | | ????????????????????????????????????????# #????? | +----------------------------------------------------+ Best States ------------- Heat Dissipation 90 Energy Generation 45 Energy Capacity 440 Matter Stores 300 Matter Capacity 300 Sight Range 24 Robot Scan Range 15 Terrain Scan Density 10 Additional Mass Support 25 Armor Coverage 150 Phase Shifting 5 Evasion (%) 78 Melee Accuracy 20 Core Analysis 6 Energy Filtering 50 Offensive Hacking 52 Defensive Hacking 35 Relay Coupler Types 2 Relay Coupler Value 58 Authchip Count 1 Item Schematics ----------------- Hacking Suite | -7/Factory | Hacked Combat Drone Bay | -7/Data Miner | Free Lgt. Regenerative Plating | -7/Data Miner | Free Cld. Cesium-ion Thruster | -7/Data Miner | Free Thermal Defense Suite | -7/Data Miner | Free Scatter Rocket Array | -7/Data Miner | Free Nuclear Pulse Array | -7/Data Miner | Free Imp. Kinecellerator | -7/Data Miner | Free Thermic Laser | -7/Data Miner | Free Tesla Rifle | -7/Data Miner | Free KE Penetrator | -7/Data Miner | Free Railgun | -7/Data Miner | Free Neutrino Core | -7/Data Miner | Free Adv. Hacking Suite | -5/Factory | Hacked Adv. System Shield | -5/Factory | Hacked Exp. Propulsion Shielding | -5/Factory | Hacked Cloaking Device | -5/Factory | Hacked Imp. Component Analysis Suite | -5/Factory | Hacked Cld. Airjet | -4/Factory | Hacked Adv. Phase Shifter | -4/Factory | Hacked Enh. Nova Cannon | -2/Research | Hacked Quantum Reactor | -2/Research | Hacked Robot Schematics ------------------ R-10 Processor | -7/Data Miner | Free H-55 Commando | -7/Data Miner | Free E-15 Imp | -7/Data Miner | Free A-15 Conveyor | -7/Data Miner | Free B-48 Gladiator | -7/Data Miner | Free M-30 Cleanser | -2/Research | Hacked B-74 Champion | -2/Research | Hacked G-73 Enforcer | -2/Research | Hacked Fabricated ------------ Hacking Suite | x1 | -7/Factory Ionic Axe | x1 | -5/Factory | Preloaded Cld. Cesium-ion Thruster | x1 | -5/Factory | Authchip Cld. Cesium-ion Thruster | x1 | -4/Factory Alien Tech Used ----------------- None Achievements -------------- None Challenges ------------ None Game ------ Seed HeartChipCutter Manual? 0 Play Time 02:16:25 Cumulative 230.0 hours Start 2022.06.10 @ 04:15:58 End 2022.06.10 @ 07:00:02 Sessions 1 Manual Loads 0 Difficulty Rogue Special Mode None Game No. 285 Rogue 285 Adventurer 0 Explorer 0 Win Type - Total 11 Types 8/0/2/1/0/0/0/0/0 Lore% 67 Gallery% 84 Achievement% 73 Wizard Run 0 Options --------- ASCII 0 Keyboard 0 Movement Numpad Keybinds 0 Fullscreen 1 Font 18/Terminus Map View 76x50 Tactical HUD 1 Map Filters NONE Filters NONE Steam 1 RUN: 1df1ff10-28eb-4491-aa8e-6a292270df0f